{"text_format":"3","workbook":"xlsx","n_sheets":1,"sheets":["PRICING SCHEDULE"],"not_rendered":{"images":1,"defined_names":2},"read":"whole","date_system":"1900"}

{"sheet":"PRICING SCHEDULE","index":0,"n_rows":32,"n_cols":17,"rows_kept":32,"merged":[[12,2,12,3],[13,2,13,3],[13,5,15,5],[14,2,14,3],[15,2,15,3],[17,4,17,6],[17,7,17,9],[28,1,31,1],[28,2,28,3],[28,4,28,5],[29,2,29,3],[29,4,29,5],[30,2,30,3],[30,4,30,5],[31,2,31,3],[31,4,31,5]]}
[]
[null,"SUPPLY CHAIN MANAGEMENT"]
[null,"Pricing schedule"]
["RFB No","INC000024374296"]
["RFB Title","Request for acquisition, maintenance and support for mainframe dump and fault analysis tool for DOD for a period of (3) Years"]
["Bidder Name "]
[]
["1. INSTRUCTION FOR COMPLETING THE PRICING SCHEDULE"]
["(a)  Bidder must complete/enter YELLOW cells only"]
["(b)  Unit and Line prices must be VAT EXCLUSIVE and in South African Rand (ZAR) currency."]
["(c) The price must include all cost to deliver the goods or render the service, including all applicable taxes, duty fees, logistics/delivery, storage, labour, overtime and subsistance and travel"]
["(d)  Prices that are dependent on Rate of Exchange (ROE) must use ROE indicated below, then enter in Column \"Forex %\" the percentage of the price that is ROE dependent (0% means the price is not ROE dependent)"]
[null,"Foreign currency","South African Rand (ZAR) exchange rate "]
[null,"1 US Dollar",{"v":18.86,"d":"R18.86"},null,null,"Mark with an X, which ROE is applicable"]
[null,"1 Euro",{"v":20.61,"d":"R20.61"}]
[null,"1 Pound (UK)",{"v":24.1,"d":"R24.10"}]
[]
[{"$nulls":4},"YEAR 1",null,null,"YEAR 2",{"$nulls":3},"YEAR 3"]
["Item No","Goods/Service description","Unit of measure","Forex %","Qty ","Unit Price \n(Excl VAT)","Line Price Y1","Qty ","Unit Price \n(Excl VAT)","Line Price Y2","Qty ","Unit Price\n(Excl VAT)","Line Price Y3","Line Price Term \n(Excl VAT)","Forex Price portion","BRAND / MODEL","Price clarification comment"]
[null,"[GOODS/SERVICE PACKAGE 1]"]
[1,"Dump and Falut analysis Tool"]
["1.1","Software acquisition cost (See BIDSPEC - 2.3.CUSTOMER CURRENT INFRASTRUCTURE AND ENVIRONMENT REQUIREMENTS ) for sizing and quantinties of mainrame environment","each",{"v":0,"d":"0%"},1,{"v":0,"d":"R0.00"},{"$f":"+F22*E22","v":0},0,null,{"$f":"+I22*H22","v":0},0,0,{"$f":"+L22*K22","v":0},{"$f":"+M22+J22+G22","v":0},{"$f":"+N22*D22","v":0}]
["1.2","Software maintenance and support for 3 year period  (01/09/2023 – 31/08/2026)","each",{"v":0,"d":"0%"},1,{"v":0,"d":"R0.00"},{"$f":"+F23*E23","v":0},1,0,{"$f":"+I23*H23","v":0},1,0,{"$f":"+L23*K23","v":0},{"$f":"+M23+J23+G23","v":0},{"$f":"+N23*D23","v":0}]
[1.3,"Training for 40 people on proposed soluion","each",{"v":0,"d":"0%"},40,{"v":0,"d":"R0.00"},{"$f":"+F24*E24","v":0},{"$nulls":6},{"$f":"+M24+J24+G24","v":0},{"$f":"+N24*D24","v":0}]
[]
[null,"TOTAL  BID PRICE (EXCL VAT)",{"$nulls":4},{"$f":"(G21)","v":0},null,null,{"$f":"(J21)","v":0},{"$nulls":3},{"$f":"SUM(N22:N25)","v":0}]
[null,"VAT (@15%)",{"$nulls":4},{"$f":"G26*0.15","v":0},null,null,{"$f":"J26*0.15","v":0},{"$nulls":3},{"$f":"N26*0.15","v":0}]
[null,"TOTAL  BID PRICE (INCL VAT)",{"$nulls":4},{"$f":"G26+G27","v":0},null,null,{"$f":"J27*0.15","v":0},{"$nulls":3},{"$f":"N26+N27","v":0}]
[null,"I, the bidder, confirm that the price(s) and rate(s) quoted cover all the goods and/or works specified in the bidding documents; that the price(s) or rate(s) cover all my obligations and I accept that any mistakes regarding price(s), rate(s) or calculations will be at my own risk.\n[Note: First convert to PDF, then add signature]"]
[null,null,"Name",null,"Capacity"]
[]
[null,null,"Signature (above)",null,"Date"]